Workbook

Sheet Strategie opcyjne
B2: kurs bieżący (S) | C2: 4 | G2: Strategie opcyjne I.-IV. | K2: Opcje toksyczne
B3: okres zabezpieczenia (T) | C3: 1
B4: zmienność waluty (s) | C4: 0.2 | F4: kwota zabezpieczenia w Euro | G4: 10 | H4: 20 | I4: 20 | J4: 10 | K4: 10 | L4: 40
B5: stopa rf krajowa | C5: 0.05 | F5: zakup opcji / sprzedaż opcji | K5: zakup | L5: sprzedaż
B6: stopa rf zagraniczna | C6: 0.03 | F6: opcja kupna / opcja sprzedaży | K6: o.sprzedaży | L6: o.kupna
B7: rodzaj działalności : | F7: kurs wykonania (X) | G7: 4 | H7: 4 | I7: 4 | J7: 4.1 | K7: 4 | L7: 4
B8: przychody / koszty w Euro : | C8: 10
B9: koszty / przychody w zł : | C9: 40 | F9: P/K | G9: I. | H9: II. | I9: III. | J9: IV. | K9: V.&VI.
C11: TRUE
C12: TRUE
C13: FALSE | F13: opcja kupna (1) lub sprzedaży (-1) | G13: =IF(G16=1,1,-1) -> -1 | H13: =IF(H16=1,1,-1) -> 1 | I13: =IF(I16=1,1,-1) -> -1 | J13: =IF(J16=1,1,-1) -> 1 | K13: -1 | L13: 1
C14: FALSE | F14: kupno opcji (1) lub sprzedaż (-1) | G14: =IF(G19=1,1,-1) -> 1 | H14: =IF(H19=1,1,-1) -> 1 | I14: =IF(I19=1,1,-1) -> 1 | J14: =IF(J19=1,1,-1) -> -1 | K14: 1 | L14: -1
C15: FALSE
C16: FALSE | E16: o.kupna | G16: 2 | H16: 1 | I16: 2 | J16: 1
E17: o.sprzedaży
C19: 2 | E19: zakup | G19: 1 | H19: 1 | I19: 1 | J19: 2
C20: Importer | E20: sprzedaż
C21: Eksporter
D43: WC | E43: kurs | F43: W | G43: Wynik na zabezpieczeniu
D44: =SUM(IF(ISNUMBER(F44:L44),F44:L44)) -> 7.30763294 | E44: 5 | F44: =IF($C$11,IF($C$19=1,$C$9-$C$8*E44,$C$8*E44-$C$9),NA()) -> 10 | G44: =IF($C$12,(G$14*(G$4*MAX(0,G$13*($E44-G$7))))+(G$14*-G$4*BSOptionvalue(G$13,$C$2,G$7,$C$5,$C$6,$C$3,$C$4)),NA()) -> -2.69236706 | H44: =IF($C$13,(H$14*(H$4*MAX(0,H$13*($E44-H$7))))+(H$14*-H$4*BSOptionvalue(H$13,$C$2,H$7,$C$5,$C$6,$C$3,$C$4)),NA()) ->  | I44: =IF($C$14,(I$14*(I$4*MAX(0,I$13*($E44-I$7))))+(I$14*-I$4*BSOptionvalue(I$13,$C$2,I$7,$C$5,$C$6,$C$3,$C$4)),NA()) ->  | J44: =IF($C$15,(J$14*(J$4*MAX(0,J$13*($E44-J$7))))+(J$14*-J$4*BSOptionvalue(J$13,$C$2,J$7,$C$5,$C$6,$C$3,$C$4)),NA()) ->  | K44: =IF($C$16,(K$14*(K$4*MAX(0,K$13*($E44-K$7)))),NA()) -> 
D45: =SUM(IF(ISNUMBER(F45:L45),F45:L45)) -> 6.30763294 | E45: =E44-0.1 -> 4.9 | F45: 9 | G45: =IF($C$12,(G$14*(G$4*MAX(0,G$13*($E45-G$7))))+(G$14*-G$4*BSOptionvalue(G$13,$C$2,G$7,$C$5,$C$6,$C$3,$C$4)),NA()) -> -2.69236706 | H45: =IF($C$13,(H$14*(H$4*MAX(0,H$13*($E45-H$7))))+(H$14*-H$4*BSOptionvalue(H$13,$C$2,H$7,$C$5,$C$6,$C$3,$C$4)),NA()) ->  | I45: =IF($C$14,(I$14*(I$4*MAX(0,I$13*($E45-I$7))))+(I$14*-I$4*BSOptionvalue(I$13,$C$2,I$7,$C$5,$C$6,$C$3,$C$4)),NA()) ->  | J45: =IF($C$15,(J$14*(J$4*MAX(0,J$13*($E45-J$7))))+(J$14*-J$4*BSOptionvalue(J$13,$C$2,J$7,$C$5,$C$6,$C$3,$C$4)),NA()) -> 
D46: =SUM(IF(ISNUMBER(F46:L46),F46:L46)) -> 5.30763294 | E46: 4.8 | F46: 8 | G46: =IF($C$12,(G$14*(G$4*MAX(0,G$13*($E46-G$7))))+(G$14*-G$4*BSOptionvalue(G$13,$C$2,G$7,$C$5,$C$6,$C$3,$C$4)),NA()) -> -2.69236706 | H46: =IF($C$13,(H$14*(H$4*MAX(0,H$13*($E46-H$7))))+(H$14*-H$4*BSOptionvalue(H$13,$C$2,H$7,$C$5,$C$6,$C$3,$C$4)),NA()) ->  | I46: =IF($C$14,(I$14*(I$4*MAX(0,I$13*($E46-I$7))))+(I$14*-I$4*BSOptionvalue(I$13,$C$2,I$7,$C$5,$C$6,$C$3,$C$4)),NA()) ->  | J46: =IF($C$15,(J$14*(J$4*MAX(0,J$13*($E46-J$7))))+(J$14*-J$4*BSOptionvalue(J$13,$C$2,J$7,$C$5,$C$6,$C$3,$C$4)),NA()) -> 
D47: =SUM(IF(ISNUMBER(F47:L47),F47:L47)) -> 4.30763294 | E47: 4.7 | F47: 7 | G47: =IF($C$12,(G$14*(G$4*MAX(0,G$13*($E47-G$7))))+(G$14*-G$4*BSOptionvalue(G$13,$C$2,G$7,$C$5,$C$6,$C$3,$C$4)),NA()) -> -2.69236706 | H47: =IF($C$13,(H$14*(H$4*MAX(0,H$13*($E47-H$7))))+(H$14*-H$4*BSOptionvalue(H$13,$C$2,H$7,$C$5,$C$6,$C$3,$C$4)),NA()) ->  | I47: =IF($C$14,(I$14*(I$4*MAX(0,I$13*($E47-I$7))))+(I$14*-I$4*BSOptionvalue(I$13,$C$2,I$7,$C$5,$C$6,$C$3,$C$4)),NA()) ->  | J47: =IF($C$15,(J$14*(J$4*MAX(0,J$13*($E47-J$7))))+(J$14*-J$4*BSOptionvalue(J$13,$C$2,J$7,$C$5,$C$6,$C$3,$C$4)),NA()) -> 
D48: =SUM(IF(ISNUMBER(F48:L48),F48:L48)) -> 3.30763294 | E48: 4.6 | F48: 6 | G48: =IF($C$12,(G$14*(G$4*MAX(0,G$13*($E48-G$7))))+(G$14*-G$4*BSOptionvalue(G$13,$C$2,G$7,$C$5,$C$6,$C$3,$C$4)),NA()) -> -2.69236706 | H48: =IF($C$13,(H$14*(H$4*MAX(0,H$13*($E48-H$7))))+(H$14*-H$4*BSOptionvalue(H$13,$C$2,H$7,$C$5,$C$6,$C$3,$C$4)),NA()) ->  | I48: =IF($C$14,(I$14*(I$4*MAX(0,I$13*($E48-I$7))))+(I$14*-I$4*BSOptionvalue(I$13,$C$2,I$7,$C$5,$C$6,$C$3,$C$4)),NA()) ->  | J48: =IF($C$15,(J$14*(J$4*MAX(0,J$13*($E48-J$7))))+(J$14*-J$4*BSOptionvalue(J$13,$C$2,J$7,$C$5,$C$6,$C$3,$C$4)),NA()) -> 
D49: =SUM(IF(ISNUMBER(F49:L49),F49:L49)) -> 2.30763294 | E49: 4.5 | F49: 5 | G49: =IF($C$12,(G$14*(G$4*MAX(0,G$13*($E49-G$7))))+(G$14*-G$4*BSOptionvalue(G$13,$C$2,G$7,$C$5,$C$6,$C$3,$C$4)),NA()) -> -2.69236706 | H49: =IF($C$13,(H$14*(H$4*MAX(0,H$13*($E49-H$7))))+(H$14*-H$4*BSOptionvalue(H$13,$C$2,H$7,$C$5,$C$6,$C$3,$C$4)),NA()) ->  | I49: =IF($C$14,(I$14*(I$4*MAX(0,I$13*($E49-I$7))))+(I$14*-I$4*BSOptionvalue(I$13,$C$2,I$7,$C$5,$C$6,$C$3,$C$4)),NA()) ->  | J49: =IF($C$15,(J$14*(J$4*MAX(0,J$13*($E49-J$7))))+(J$14*-J$4*BSOptionvalue(J$13,$C$2,J$7,$C$5,$C$6,$C$3,$C$4)),NA()) -> 
D50: =SUM(IF(ISNUMBER(F50:L50),F50:L50)) -> 1.30763294 | E50: 4.4 | F50: 4 | G50: =IF($C$12,(G$14*(G$4*MAX(0,G$13*($E50-G$7))))+(G$14*-G$4*BSOptionvalue(G$13,$C$2,G$7,$C$5,$C$6,$C$3,$C$4)),NA()) -> -2.69236706 | H50: =IF($C$13,(H$14*(H$4*MAX(0,H$13*($E50-H$7))))+(H$14*-H$4*BSOptionvalue(H$13,$C$2,H$7,$C$5,$C$6,$C$3,$C$4)),NA()) ->  | I50: =IF($C$14,(I$14*(I$4*MAX(0,I$13*($E50-I$7))))+(I$14*-I$4*BSOptionvalue(I$13,$C$2,I$7,$C$5,$C$6,$C$3,$C$4)),NA()) ->  | J50: =IF($C$15,(J$14*(J$4*MAX(0,J$13*($E50-J$7))))+(J$14*-J$4*BSOptionvalue(J$13,$C$2,J$7,$C$5,$C$6,$C$3,$C$4)),NA()) -> 
D51: =SUM(IF(ISNUMBER(F51:L51),F51:L51)) -> 0.3076329403 | E51: 4.3 | F51: 3 | G51: =IF($C$12,(G$14*(G$4*MAX(0,G$13*($E51-G$7))))+(G$14*-G$4*BSOptionvalue(G$13,$C$2,G$7,$C$5,$C$6,$C$3,$C$4)),NA()) -> -2.69236706 | H51: =IF($C$13,(H$14*(H$4*MAX(0,H$13*($E51-H$7))))+(H$14*-H$4*BSOptionvalue(H$13,$C$2,H$7,$C$5,$C$6,$C$3,$C$4)),NA()) ->  | I51: =IF($C$14,(I$14*(I$4*MAX(0,I$13*($E51-I$7))))+(I$14*-I$4*BSOptionvalue(I$13,$C$2,I$7,$C$5,$C$6,$C$3,$C$4)),NA()) ->  | J51: =IF($C$15,(J$14*(J$4*MAX(0,J$13*($E51-J$7))))+(J$14*-J$4*BSOptionvalue(J$13,$C$2,J$7,$C$5,$C$6,$C$3,$C$4)),NA()) -> 
D52: =SUM(IF(ISNUMBER(F52:L52),F52:L52)) -> -0.6923670597 | E52: 4.2 | F52: 2 | G52: =IF($C$12,(G$14*(G$4*MAX(0,G$13*($E52-G$7))))+(G$14*-G$4*BSOptionvalue(G$13,$C$2,G$7,$C$5,$C$6,$C$3,$C$4)),NA()) -> -2.69236706 | H52: =IF($C$13,(H$14*(H$4*MAX(0,H$13*($E52-H$7))))+(H$14*-H$4*BSOptionvalue(H$13,$C$2,H$7,$C$5,$C$6,$C$3,$C$4)),NA()) ->  | I52: =IF($C$14,(I$14*(I$4*MAX(0,I$13*($E52-I$7))))+(I$14*-I$4*BSOptionvalue(I$13,$C$2,I$7,$C$5,$C$6,$C$3,$C$4)),NA()) ->  | J52: =IF($C$15,(J$14*(J$4*MAX(0,J$13*($E52-J$7))))+(J$14*-J$4*BSOptionvalue(J$13,$C$2,J$7,$C$5,$C$6,$C$3,$C$4)),NA()) -> 
D53: =SUM(IF(ISNUMBER(F53:L53),F53:L53)) -> -1.69236706 | E53: 4.1 | F53: 1 | G53: =IF($C$12,(G$14*(G$4*MAX(0,G$13*($E53-G$7))))+(G$14*-G$4*BSOptionvalue(G$13,$C$2,G$7,$C$5,$C$6,$C$3,$C$4)),NA()) -> -2.69236706 | H53: =IF($C$13,(H$14*(H$4*MAX(0,H$13*($E53-H$7))))+(H$14*-H$4*BSOptionvalue(H$13,$C$2,H$7,$C$5,$C$6,$C$3,$C$4)),NA()) ->  | I53: =IF($C$14,(I$14*(I$4*MAX(0,I$13*($E53-I$7))))+(I$14*-I$4*BSOptionvalue(I$13,$C$2,I$7,$C$5,$C$6,$C$3,$C$4)),NA()) ->  | J53: =IF($C$15,(J$14*(J$4*MAX(0,J$13*($E53-J$7))))+(J$14*-J$4*BSOptionvalue(J$13,$C$2,J$7,$C$5,$C$6,$C$3,$C$4)),NA()) -> 
D54: =SUM(IF(ISNUMBER(F54:L54),F54:L54)) -> -2.69236706 | E54: 4 | F54: 3.552713679e-14 | G54: =IF($C$12,(G$14*(G$4*MAX(0,G$13*($E54-G$7))))+(G$14*-G$4*BSOptionvalue(G$13,$C$2,G$7,$C$5,$C$6,$C$3,$C$4)),NA()) -> -2.69236706 | H54: =IF($C$13,(H$14*(H$4*MAX(0,H$13*($E54-H$7))))+(H$14*-H$4*BSOptionvalue(H$13,$C$2,H$7,$C$5,$C$6,$C$3,$C$4)),NA()) ->  | I54: =IF($C$14,(I$14*(I$4*MAX(0,I$13*($E54-I$7))))+(I$14*-I$4*BSOptionvalue(I$13,$C$2,I$7,$C$5,$C$6,$C$3,$C$4)),NA()) ->  | J54: =IF($C$15,(J$14*(J$4*MAX(0,J$13*($E54-J$7))))+(J$14*-J$4*BSOptionvalue(J$13,$C$2,J$7,$C$5,$C$6,$C$3,$C$4)),NA()) -> 
D55: =SUM(IF(ISNUMBER(F55:L55),F55:L55)) -> -2.69236706 | E55: 3.9 | F55: -1 | G55: =IF($C$12,(G$14*(G$4*MAX(0,G$13*($E55-G$7))))+(G$14*-G$4*BSOptionvalue(G$13,$C$2,G$7,$C$5,$C$6,$C$3,$C$4)),NA()) -> -1.69236706 | H55: =IF($C$13,(H$14*(H$4*MAX(0,H$13*($E55-H$7))))+(H$14*-H$4*BSOptionvalue(H$13,$C$2,H$7,$C$5,$C$6,$C$3,$C$4)),NA()) ->  | I55: =IF($C$14,(I$14*(I$4*MAX(0,I$13*($E55-I$7))))+(I$14*-I$4*BSOptionvalue(I$13,$C$2,I$7,$C$5,$C$6,$C$3,$C$4)),NA()) ->  | J55: =IF($C$15,(J$14*(J$4*MAX(0,J$13*($E55-J$7))))+(J$14*-J$4*BSOptionvalue(J$13,$C$2,J$7,$C$5,$C$6,$C$3,$C$4)),NA()) -> 
D56: =SUM(IF(ISNUMBER(F56:L56),F56:L56)) -> -2.69236706 | E56: 3.8 | F56: -2 | G56: =IF($C$12,(G$14*(G$4*MAX(0,G$13*($E56-G$7))))+(G$14*-G$4*BSOptionvalue(G$13,$C$2,G$7,$C$5,$C$6,$C$3,$C$4)),NA()) -> -0.6923670597 | H56: =IF($C$13,(H$14*(H$4*MAX(0,H$13*($E56-H$7))))+(H$14*-H$4*BSOptionvalue(H$13,$C$2,H$7,$C$5,$C$6,$C$3,$C$4)),NA()) ->  | I56: =IF($C$14,(I$14*(I$4*MAX(0,I$13*($E56-I$7))))+(I$14*-I$4*BSOptionvalue(I$13,$C$2,I$7,$C$5,$C$6,$C$3,$C$4)),NA()) ->  | J56: =IF($C$15,(J$14*(J$4*MAX(0,J$13*($E56-J$7))))+(J$14*-J$4*BSOptionvalue(J$13,$C$2,J$7,$C$5,$C$6,$C$3,$C$4)),NA()) -> 
D57: =SUM(IF(ISNUMBER(F57:L57),F57:L57)) -> -2.69236706 | E57: 3.7 | F57: -3 | G57: =IF($C$12,(G$14*(G$4*MAX(0,G$13*($E57-G$7))))+(G$14*-G$4*BSOptionvalue(G$13,$C$2,G$7,$C$5,$C$6,$C$3,$C$4)),NA()) -> 0.3076329403 | H57: =IF($C$13,(H$14*(H$4*MAX(0,H$13*($E57-H$7))))+(H$14*-H$4*BSOptionvalue(H$13,$C$2,H$7,$C$5,$C$6,$C$3,$C$4)),NA()) ->  | I57: =IF($C$14,(I$14*(I$4*MAX(0,I$13*($E57-I$7))))+(I$14*-I$4*BSOptionvalue(I$13,$C$2,I$7,$C$5,$C$6,$C$3,$C$4)),NA()) ->  | J57: =IF($C$15,(J$14*(J$4*MAX(0,J$13*($E57-J$7))))+(J$14*-J$4*BSOptionvalue(J$13,$C$2,J$7,$C$5,$C$6,$C$3,$C$4)),NA()) -> 
D58: =SUM(IF(ISNUMBER(F58:L58),F58:L58)) -> -2.69236706 | E58: 3.6 | F58: -4 | G58: =IF($C$12,(G$14*(G$4*MAX(0,G$13*($E58-G$7))))+(G$14*-G$4*BSOptionvalue(G$13,$C$2,G$7,$C$5,$C$6,$C$3,$C$4)),NA()) -> 1.30763294 | H58: =IF($C$13,(H$14*(H$4*MAX(0,H$13*($E58-H$7))))+(H$14*-H$4*BSOptionvalue(H$13,$C$2,H$7,$C$5,$C$6,$C$3,$C$4)),NA()) ->  | I58: =IF($C$14,(I$14*(I$4*MAX(0,I$13*($E58-I$7))))+(I$14*-I$4*BSOptionvalue(I$13,$C$2,I$7,$C$5,$C$6,$C$3,$C$4)),NA()) ->  | J58: =IF($C$15,(J$14*(J$4*MAX(0,J$13*($E58-J$7))))+(J$14*-J$4*BSOptionvalue(J$13,$C$2,J$7,$C$5,$C$6,$C$3,$C$4)),NA()) -> 
D59: =SUM(IF(ISNUMBER(F59:L59),F59:L59)) -> -2.69236706 | E59: 3.5 | F59: -5 | G59: =IF($C$12,(G$14*(G$4*MAX(0,G$13*($E59-G$7))))+(G$14*-G$4*BSOptionvalue(G$13,$C$2,G$7,$C$5,$C$6,$C$3,$C$4)),NA()) -> 2.30763294 | H59: =IF($C$13,(H$14*(H$4*MAX(0,H$13*($E59-H$7))))+(H$14*-H$4*BSOptionvalue(H$13,$C$2,H$7,$C$5,$C$6,$C$3,$C$4)),NA()) ->  | I59: =IF($C$14,(I$14*(I$4*MAX(0,I$13*($E59-I$7))))+(I$14*-I$4*BSOptionvalue(I$13,$C$2,I$7,$C$5,$C$6,$C$3,$C$4)),NA()) ->  | J59: =IF($C$15,(J$14*(J$4*MAX(0,J$13*($E59-J$7))))+(J$14*-J$4*BSOptionvalue(J$13,$C$2,J$7,$C$5,$C$6,$C$3,$C$4)),NA()) -> 
D60: =SUM(IF(ISNUMBER(F60:L60),F60:L60)) -> -2.69236706 | E60: 3.4 | F60: -6 | G60: =IF($C$12,(G$14*(G$4*MAX(0,G$13*($E60-G$7))))+(G$14*-G$4*BSOptionvalue(G$13,$C$2,G$7,$C$5,$C$6,$C$3,$C$4)),NA()) -> 3.30763294 | H60: =IF($C$13,(H$14*(H$4*MAX(0,H$13*($E60-H$7))))+(H$14*-H$4*BSOptionvalue(H$13,$C$2,H$7,$C$5,$C$6,$C$3,$C$4)),NA()) ->  | I60: =IF($C$14,(I$14*(I$4*MAX(0,I$13*($E60-I$7))))+(I$14*-I$4*BSOptionvalue(I$13,$C$2,I$7,$C$5,$C$6,$C$3,$C$4)),NA()) ->  | J60: =IF($C$15,(J$14*(J$4*MAX(0,J$13*($E60-J$7))))+(J$14*-J$4*BSOptionvalue(J$13,$C$2,J$7,$C$5,$C$6,$C$3,$C$4)),NA()) -> 
D61: =SUM(IF(ISNUMBER(F61:L61),F61:L61)) -> -2.69236706 | E61: 3.3 | F61: -7 | G61: =IF($C$12,(G$14*(G$4*MAX(0,G$13*($E61-G$7))))+(G$14*-G$4*BSOptionvalue(G$13,$C$2,G$7,$C$5,$C$6,$C$3,$C$4)),NA()) -> 4.30763294 | H61: =IF($C$13,(H$14*(H$4*MAX(0,H$13*($E61-H$7))))+(H$14*-H$4*BSOptionvalue(H$13,$C$2,H$7,$C$5,$C$6,$C$3,$C$4)),NA()) ->  | I61: =IF($C$14,(I$14*(I$4*MAX(0,I$13*($E61-I$7))))+(I$14*-I$4*BSOptionvalue(I$13,$C$2,I$7,$C$5,$C$6,$C$3,$C$4)),NA()) ->  | J61: =IF($C$15,(J$14*(J$4*MAX(0,J$13*($E61-J$7))))+(J$14*-J$4*BSOptionvalue(J$13,$C$2,J$7,$C$5,$C$6,$C$3,$C$4)),NA()) -> 
D62: =SUM(IF(ISNUMBER(F62:L62),F62:L62)) -> -2.69236706 | E62: 3.2 | F62: -8 | G62: =IF($C$12,(G$14*(G$4*MAX(0,G$13*($E62-G$7))))+(G$14*-G$4*BSOptionvalue(G$13,$C$2,G$7,$C$5,$C$6,$C$3,$C$4)),NA()) -> 5.30763294 | H62: =IF($C$13,(H$14*(H$4*MAX(0,H$13*($E62-H$7))))+(H$14*-H$4*BSOptionvalue(H$13,$C$2,H$7,$C$5,$C$6,$C$3,$C$4)),NA()) ->  | I62: =IF($C$14,(I$14*(I$4*MAX(0,I$13*($E62-I$7))))+(I$14*-I$4*BSOptionvalue(I$13,$C$2,I$7,$C$5,$C$6,$C$3,$C$4)),NA()) ->  | J62: =IF($C$15,(J$14*(J$4*MAX(0,J$13*($E62-J$7))))+(J$14*-J$4*BSOptionvalue(J$13,$C$2,J$7,$C$5,$C$6,$C$3,$C$4)),NA()) -> 
D63: =SUM(IF(ISNUMBER(F63:L63),F63:L63)) -> -2.69236706 | E63: 3.1 | F63: -9 | G63: =IF($C$12,(G$14*(G$4*MAX(0,G$13*($E63-G$7))))+(G$14*-G$4*BSOptionvalue(G$13,$C$2,G$7,$C$5,$C$6,$C$3,$C$4)),NA()) -> 6.30763294 | H63: =IF($C$13,(H$14*(H$4*MAX(0,H$13*($E63-H$7))))+(H$14*-H$4*BSOptionvalue(H$13,$C$2,H$7,$C$5,$C$6,$C$3,$C$4)),NA()) ->  | I63: =IF($C$14,(I$14*(I$4*MAX(0,I$13*($E63-I$7))))+(I$14*-I$4*BSOptionvalue(I$13,$C$2,I$7,$C$5,$C$6,$C$3,$C$4)),NA()) ->  | J63: =IF($C$15,(J$14*(J$4*MAX(0,J$13*($E63-J$7))))+(J$14*-J$4*BSOptionvalue(J$13,$C$2,J$7,$C$5,$C$6,$C$3,$C$4)),NA()) -> 
D64: =SUM(IF(ISNUMBER(F64:L64),F64:L64)) -> -2.69236706 | E64: 3 | F64: -10 | G64: =IF($C$12,(G$14*(G$4*MAX(0,G$13*($E64-G$7))))+(G$14*-G$4*BSOptionvalue(G$13,$C$2,G$7,$C$5,$C$6,$C$3,$C$4)),NA()) -> 7.30763294 | H64: =IF($C$13,(H$14*(H$4*MAX(0,H$13*($E64-H$7))))+(H$14*-H$4*BSOptionvalue(H$13,$C$2,H$7,$C$5,$C$6,$C$3,$C$4)),NA()) ->  | I64: =IF($C$14,(I$14*(I$4*MAX(0,I$13*($E64-I$7))))+(I$14*-I$4*BSOptionvalue(I$13,$C$2,I$7,$C$5,$C$6,$C$3,$C$4)),NA()) ->  | J64: =IF($C$15,(J$14*(J$4*MAX(0,J$13*($E64-J$7))))+(J$14*-J$4*BSOptionvalue(J$13,$C$2,J$7,$C$5,$C$6,$C$3,$C$4)),NA()) -> 

Sheet Model BS (hidden)
A2: Formuła Blacka-Scholesa
A4: Cena akcji (S) | D4: ='Model DM'!C5 -> 100
A5: Cena wykonania (X) | D5: ='Model DM'!C4 -> 95
A6: Stopa bez ryzyka - ciągła (r) | D6: ='Model DM'!C8 -> 0.04
A8: Stopa dywidendy (q) | D8: 0
A10: Czas obecny (0, lata) | D10: 0
A11: Czas wygaśniecia (T, lata) | D11: 2
A12: Czas życia opcji (T, lata) | D12: =D11-D10 -> 2
A13: Zmienność (ϭ) | D13: 0.4
A15: Exp (-rT) | D15: =EXP(-D6*D12) -> 0.9231163464
A16: Exp (-qT) | D16: =EXP(-D8*D12) -> 1
A18: d1 | D18: =(LN(D4/D5)+(D6-D8+0.5*D13^2)*D12)/(D13*SQRT(D12)) -> 0.5149386594
A19: N (d1) | D19: =NORMSDIST(D18) -> 0.6967020575
A21: d2 | D21: =D18-D13*SQRT(D12) -> -0.05074676551
A22: N (d2) | D22: =NORMSDIST(D21) -> 0.4797636556
A24: Wartość BS - call | B24: =D4*D16*D19-D5*D15*D22 -> 27.59682683 | D24: c = S exp(-qT) N(d1) - X exp(-rT) N(d2)
A26: Wartość BS - put | B26: =D4*D16*(D19-1)-D5*D15*(D22-1) -> 15.29287974 | D26: p = -S exp(-qT) N(-d1) + X exp(-rT) N(-d2)
A28: d1 = [ ln(S/X) + (r-q+0,5ϭ^2) T ] / ϭ T^(1/2)
A29: d2 = [ ln(S/X) + (r-q-0,5ϭ^2) T ] / ϭ T^(1/2)

Sheet Model DM (hidden)
B1: Model B-S - podejście ciągłe
B3: Założenia (w tys.zł):
B4: X = | C4: =C15 -> 95 | D4: cena wykonania
B5: So = | C5: =C16 -> 100 | D5: cena aktywa bazowego
B6: sigma = | C6: 0.4 | D6: zmienność aktywa bazowego
B7: t = | C7: =C18 -> 2 | D7: liczba lat
B8: r = | C8: 0.04 | D8: oprocentowanie wolne od ryzyka (kapit.ciągła)
B9: q = | C9: 0 | D9: stopa dywidendy
B10: Co = | C10: =BSOptionvalue(1,C5,C4,C8,0,C7,C6) -> 27.59682683 | D10: cena opcji kupna
B11: Po = | C11: =BSOptionvalue(-1,C5,C4,C8,0,C7,C6) -> 15.29287974 | D11: cena opcji sprzedaży
B13: Drzewo dwumianowe
B15: X = | C15: 95 | D15: cena wykonania
B16: So = | C16: 100 | D16: cena aktywa bazowego
B17: sigma = | C17: 0.4 | D17: zmienność aktywa bazowego
B18: t = | C18: 2 | D18: liczba lat
B19: r = | C19: 0.04 | D19: oprocentowanie wolne od ryzyka (kapit.ciągła)
B22: określamy parametry u i d: | D22: t = 2 , T = 4 | E22: wartość prawdopodobieństw neutralnych:
B24: u = | C24: =EXP(C17*SQRT(2/4)) -> 1.326896441 | E24: p = | F24: =(I25-C25)/(C24-C25) -> 0.4649965035 | H24: dt = | I24: =2/4 -> 0.5
B25: d = | C25: =EXP(-C17*SQRT(2/4)) -> 0.7536383164 | E25: (1 - p) = | F25: =1-F24 -> 0.5350034965 | H25: erdt = | I25: =EXP(C19*I24) -> 1.02020134
B29: krok | C29: 0 | E29: 1 | G29: 2 | I29: 3 | K29: 4
K31: =I33*$C$24 -> 309.9903091
I33: =G35*$C$24 -> 233.6205746
G35: =E37*$C$24 -> 176.0654166 | K35: =I33*$C$25 -> 176.0654166
E37: =C39*$C$24 -> 132.6896441 | I37: =G39*$C$24 -> 132.6896441
C39: =C16 -> 100 | G39: =E41*$C$24 -> 100 | K39: =I37*$C$25 -> 100
E41: =C39*$C$25 -> 75.36383164 | I41: =G43*$C$24 -> 75.36383164
G43: =E41*$C$25 -> 56.7970712 | K43: =I41*$C$25 -> 56.7970712
I45: =G43*$C$25 -> 42.80444912
K47: =I45*$C$25 -> 32.25907297
B49: krok | C49: 0 | E49: 1 | G49: 2 | I49: 3 | K49: 4
K51: =MAX(0,K31-$C$15) -> 214.9903091
I53: =(K51*$F$24+K55*$F$25)/$I$25 -> 140.5017007
G55: =(I53*$F$24+I57*$F$25)/$I$25 -> 84.79041983 | K55: =MAX(0,K35-$C$15) -> 81.06541655
E57: =(G55*$F$24+G59*$F$25)/$I$25 -> 48.7314711 | I57: =(K55*$F$24+K59*$F$25)/$I$25 -> 39.57077015
C59: =(E57*$F$24+E61*$F$25)/$I$25 -> 27.09352113 | G59: =(I57*$F$24+I61*$F$25)/$I$25 -> 19.2310208 | K59: =MAX(0,K39-$C$15) -> 5
E61: =(G59*$F$24+G63*$F$25)/$I$25 -> 9.310000628 | I61: =(K59*$F$24+K63*$F$25)/$I$25 -> 2.278944779
G63: =(I61*$F$24+I65*$F$25)/$I$25 -> 1.038717861 | K63: =MAX(0,K43-$C$15) -> 0
I65: =(K63*$F$24+K67*$F$25)/$I$25 -> 0
K67: =MAX(0,K47-$C$15) -> 0
B70: krok | C70: 0 | E70: 1 | G70: 2 | I70: 3 | K70: 4
K72: =MAX(0,$C$15-K31) -> 0
I74: =(K72*$F$24+K76*$F$25)/$I$25 -> 0
G76: =(I74*$F$24+I78*$F$25)/$I$25 -> 0 | K76: =MAX(0,$C$15-K35) -> 0
E78: =(G76*$F$24+G80*$F$25)/$I$25 -> 5.509457677 | I78: =(K76*$F$24+K80*$F$25)/$I$25 -> 0
C80: =(E78*$F$24+E82*$F$25)/$I$25 -> 14.78957403 | G80: =(I78*$F$24+I82*$F$25)/$I$25 -> 10.50601751 | K80: =MAX(0,$C$15-K39) -> 0
E82: =(G80*$F$24+G84*$F$25)/$I$25 -> 23.41379967 | I82: =(K80*$F$24+K84*$F$25)/$I$25 -> 20.0339871
G84: =(I82*$F$24+I86*$F$25)/$I$25 -> 35.51664338 | K84: =MAX(0,$C$15-K43) -> 38.2029288
I86: =(K84*$F$24+K88*$F$25)/$I$25 -> 50.31442485
K88: =MAX(0,$C$15-K47) -> 62.74092703

Sheet Zabezpieczenie&Hazard
A1: Strategia zabezpieczenia | B1: kupno | E1: wystawienie | F1: kupno
B2: opcja put | E2: opcja call | F2: opcja put
A3: kwota zabezpieczenia w Euro | B3: 0 | E3: =6*F3 -> 60000000 | F3: 10000000
A4: rodzaj zabezpieczenia | B4: -1 | E4: 1 | F4: -1
A5: cena wykonania | B5: 3.6 | E5: 3.8 | F5: 3.6
A6: wartość opcji | B6: =BSOptionvalue(B4,B10,B5,5%,3%,1,EUR!$C$8) -> 0.03829182363 | E6: =BSOptionvalue(E4,B10,E5,5%,3%,1,EUR!$C$8) -> 0.04093842575 | F6: =BSOptionvalue(F4,B10,F5,5%,3%,1,EUR!$C$8) -> 0.03829182363
A7: koszt zabezpieczeń | B7: =B3*B6 -> 0 | E7: =IF($B$15="x",E3*(MAX(0,$B$13-E5)),E3*(MAX(0,$B$12-E5))) -> 3917721.286 | G7: =G3*G6 -> 0
A8: korzysci z zabezpieczenia | B8: =IF($B$15="x",B3*(MAX(0,$B$5-$B$13)),B3*(MAX(0,$B$5-$B$12))) -> 0 | D8: =D3*D6 -> 0 | F8: =IF($B$15="x",F3*(MAX(0,F5-$B$13)),F3*(MAX(0,F5-$B$12))) -> 0
A10: Kurs Euro dzisiaj | B10: =EUR!B4 -> 3.628
A12: Kurs Euro za rok | B12: 3
A13: Losowa realizacja kursu Euro za rok | B13: =B10*EXP(NORMINV(RAND(),EUR!C6,EUR!C8)) -> 3.865295355
A15: kurs losowo generowany ? (x) | B15: x
A17: Rachunek zysków i strat | B17: =B33 -> 457889.2374 | D17: =D33 -> -3352425.931 | G17: WFN | H17: WFN
A18: Przychody ze sprzedaży | B18: =IF(B15="x",B19+B20*B13,B19+B20*B12) -> 4365295.355 | D18: =IF(B15="x",B19+B20*B13,B19+B20*B12) -> 4365295.355 | F18: E(WFN) | G18: =AVERAGE(B41:B1040) -> 266444.4863 | H18: =AVERAGE(D41:D1040) -> -544220.8882
A19: Przychody krajowe | B19: 500000 | D19: 500000 | F19: s(WFN) | G19: =STDEV(B41:B1040) -> 163139.3371 | H19: =STDEV(D41:D1040) -> 3810417.191
A20: Przychody w Euro | B20: 1000000 | D20: 1000000 | F20: EaR | G20: =NORMINV(5%,G18,G19) -> -1895.844026 | H20: =NORMINV(5%,H18,H19) -> -6811799.425
A21: Koszty sprzedanych produktów | B21: =3500000 -> 3500000 | D21: =3500000 -> 3500000 | F21: EaR | G21: =PERCENTILE(B41:B1040,5%) -> 14311.8861 | H21: =PERCENTILE(D41:D1040,5%) -> -9833944.033
A22: Zysk (strata) brutto ze sprzedaży | B22: =B18-B21 -> 865295.3548 | D22: =D18-D21 -> 865295.3548 | F22: EaR | G22: =($G$18-G20)/$G$18 -> 1.007115343 | H22: =($H$18-H20)/$H$18 -> -11.51660782
A23: Koszty sprzedaży | B23: 200000 | D23: 200000 | F23: EaR | G23: =($G$18-G21)/$G$18 -> 0.9462856736 | H23: =($H$18-H21)/$H$18 -> -17.06976587
A24: Koszty ogólnego zarządu | B24: 100000 | D24: 100000
A25: Zysk (strata) ze sprzedaży | B25: =B22-B23-B24 -> 565295.3548 | D25: =D22-D23-D24 -> 565295.3548 | F25: szansa na | G25: =1-NORMDIST(0,G18,G19,1) -> 0.9487899587 | H25: =1-NORMDIST(0,H18,H19,1) -> 0.443214398
A26: Pozostałe przychody operacyjne | B26: 0 | D26: 0 | F26: ZYSK
A27: Pozostałe koszty operacyjne | B27: 0 | D27: 0
A28: Zysk (strata) z działalności operacyjnej | B28: =B25+B26-B27 -> 565295.3548 | D28: =D25+D26-D27 -> 565295.3548
A29: Przychody finansowe | B29: =B8 -> 0 | D29: =E8+F8 -> 0
A30: Koszty finansowe | B30: =B7 -> 0 | D30: =E7+F7 -> 3917721.286
A31: Zysk (strata) brutto | B31: =B28+B29-B30 -> 565295.3548 | D31: =D28+D29-D30 -> -3352425.931
A32: Podatek dochodowy (19%) | B32: =IF(B31>0,B31*0.19,0) -> 107406.1174 | D32: =IF(D31>0,D31*0.19,0) -> 0
A33: Zysk (strata) netto | B33: =B31-B32 -> 457889.2374 | D33: =D31-D32 -> -3352425.931
A41: 1 | B41: -43342.87258 | D41: 2071364.951
A42: 2 | B42: 93662.43741 | D42: 771001.3736
A43: 3 | B43: 405751.664 | D43: 2198300.881
A44: 4 | B44: 194910.6067 | D44: 292080.3451
A45: 5 | B45: 341167.1433 | D45: 506577.051
A46: 6 | B46: -119142.1772 | D46: -4155455.809
A47: 7 | B47: 148852.2867 | D47: 2888826.268
A48: 8 | B48: 496956.7485 | D48: 1566648.063
A49: 9 | B49: 320224.6255 | D49: 324624.0005
A50: 10 | B50: 165961.1762 | D50: 302273.7398
A51: 11 | B51: 306177.5077 | D51: 810657.1109
A52: 12 | B52: 374643.2433 | D52: 314360.7963
A53: 13 | B53: 246640.0084 | D53: 2862220.476
A54: 14 | B54: 394887.1744 | D54: 5024629.771
A55: 15 | B55: 190532.4972 | D55: 1403089.817
A56: 16 | B56: 195577.2115 | D56: 389402.1447
A57: 17 | B57: 324811.5467 | D57: -19399224.9
A58: 18 | B58: 461044.3297 | D58: 333395.1155
A59: 19 | B59: 590189.4352 | D59: 365038.9876
A60: 20 | B60: 287890.2417 | D60: 273564.0662
A61: 21 | B61: 223965.5824 | D61: 303093.2654
A62: 22 | B62: 349465.0452 | D62: 2277850.376
A63: 23 | B63: 51265.81093 | D63: 2071750.989
A64: 24 | B64: 297063.399 | D64: 329211.7506
A65: 25 | B65: 288903.5139 | D65: -6485859.487
A66: 26 | B66: 571090.5519 | D66: 742373.9283
A67: 27 | B67: 193673.9041 | D67: 256196.6027
A68: 28 | B68: 474037.2404 | D68: -8163287.706
A69: 29 | B69: 267575.6358 | D69: 330644.7317
A70: 30 | B70: 506652.2131 | D70: 1652626.991
A71: 31 | B71: 266316.4892 | D71: 1428777.847
A72: 32 | B72: 251407.9685 | D72: -4226996.748
A73: 33 | B73: 244063.2154 | D73: -8660495.132
A74: 34 | B74: 150820.6471 | D74: 2081201.81
A75: 35 | B75: 349542.3373 | D75: 255395.8187
A76: 36 | B76: 146919.5624 | D76: 381445.1512
A77: 37 | B77: 401237.1391 | D77: 266156.4744
A78: 38 | B78: 542016.5863 | D78: 311983.7693
A79: 39 | B79: 256289.984 | D79: 385211.5034
A80: 40 | B80: 419474.6299 | D80: 455242.0865
A81: 41 | B81: 255464.9469 | D81: 332967.636
A82: 42 | B82: 503273.0596 | D82: 894435.9963
A83: 43 | B83: 470857.5075 | D83: 1035916.046
A84: 44 | B84: 30673.44191 | D84: 1310685.534
A85: 45 | B85: 462663.0115 | D85: 2449548.314
A86: 46 | B86: -106319.8425 | D86: 892068.1657
A87: 47 | B87: -108956.2498 | D87: 569746.9346
A88: 48 | B88: 323619.4927 | D88: -9965382.195
A89: 49 | B89: 187780.7659 | D89: 318248.4099
A90: 50 | B90: 99737.25089 | D90: 3753667.223
A91: 51 | B91: 362773.5025 | D91: 266671.9967
A92: 52 | B92: 365935.2722 | D92: -1739890.751
A93: 53 | B93: 287471.2466 | D93: -8995826.704
A94: 54 | B94: 484682.7782 | D94: 809048.7219
A95: 55 | B95: 73420.62701 | D95: 340447.1072
A96: 56 | B96: 347280.8368 | D96: 780137.3754
A97: 57 | B97: 298947.3523 | D97: 3456934.873
A98: 58 | B98: 209479.8435 | D98: 570506.6391
A99: 59 | B99: 267539.7626 | D99: 284427.9504
A100: 60 | B100: 185718.2866 | D100: -10034150.84
A101: 61 | B101: 231166.7939 | D101: 294869.3191
A102: 62 | B102: 116326.167 | D102: 495731.1795
A103: 63 | B103: 369079.3465 | D103: 1827686.616
A104: 64 | B104: 316463.7727 | D104: 485714.1451
A105: 65 | B105: 291558.609 | D105: 865697.7766
A106: 66 | B106: 194484.6952 | D106: 3344532.19
A107: 67 | B107: 92289.1809 | D107: 1705274.159
A108: 68 | B108: 320532.8826 | D108: 1551553.72
A109: 69 | B109: 270844.8805 | D109: 324127.5091
A110: 70 | B110: 186966.4445 | D110: 1084873.105
A111: 71 | B111: 270207.7043 | D111: 256532.7536
A112: 72 | B112: 400685.9859 | D112: 443827.0884
A113: 73 | B113: 115279.0405 | D113: 379411.4807
A114: 74 | B114: -18182.20483 | D114: 281623.6161
A115: 75 | B115: 39685.89575 | D115: 271618.5645
A116: 76 | B116: 313898.7916 | D116: 1872313.261
A117: 77 | B117: -141450.003 | D117: 2777564.919
A118: 78 | B118: 180049.3027 | D118: 558502.7383
A119: 79 | B119: 188881.2184 | D119: 271261.7157
A120: 80 | B120: 290107.6588 | D120: 304038.2144
A121: 81 | B121: 188858.3856 | D121: 349600.7928
A122: 82 | B122: 143999.6805 | D122: 293388.8222
A123: 83 | B123: 418023.8613 | D123: 442432.6152
A124: 84 | B124: 319203.6533 | D124: -2127921.383
A125: 85 | B125: 429475.1829 | D125: 254170.0649
A126: 86 | B126: 285571.7255 | D126: 781590.0393
A127: 87 | B127: 67394.50164 | D127: -22075846.04
A128: 88 | B128: 414811.5768 | D128: 2004894.022
A129: 89 | B129: 275688.1465 | D129: 383453.1455
A130: 90 | B130: 260101.4703 | D130: 1133885.259
A131: 91 | B131: 38453.05654 | D131: -25196.60313
A132: 92 | B132: 338237.0371 | D132: -26176787.2
A133: 93 | B133: 69049.19505 | D133: 354865.2803
A134: 94 | B134: 259375.531 | D134: 385126.6067
A135: 95 | B135: 259416.781 | D135: 2417815.558
A136: 96 | B136: 187575.6537 | D136: 336486.9712
A137: 97 | B137: 377861.5223 | D137: -13081404.55
A138: 98 | B138: 284361.9505 | D138: -4462483.895
A139: 99 | B139: 88051.65254 | D139: 331954.0703
A140: 100 | B140: 222411.6981 | D140: 331109.46
A141: 101 | B141: 202451.633 | D141: 429801.6099
A142: 102 | B142: 245557.0015 | D142: -2622841.826
A143: 103 | B143: 86633.37059 | D143: 1787428.918
A144: 104 | B144: 480178.492 | D144: 912826.4771
A145: 105 | B145: 304920.5945 | D145: 386530.545
A146: 106 | B146: 193913.7705 | D146: 272049.0035
A147: 107 | B147: 370889.0705 | D147: 252258.3855
A148: 108 | B148: -80006.09513 | D148: -12189643.79
A149: 109 | B149: 495498.3588 | D149: 319296.942
A150: 110 | B150: 64289.81184 | D150: -4659149.261
A151: 111 | B151: 599811.7727 | D151: 557350.0398
A152: 112 | B152: 215057.5605 | D152: 350584.7683
A153: 113 | B153: 782948.2465 | D153: 332620.2962
A154: 114 | B154: 238003.6318 | D154: -8343311.476
A155: 115 | B155: 526461.686 | D155: 887610.1086
A156: 116 | B156: 459602.8187 | D156: 464606.8889
A157: 117 | B157: 274260.4775 | D157: 1727708.917
A158: 118 | B158: 267954.446 | D158: 513137.8282
A159: 119 | B159: 238387.7479 | D159: -5214832.676
A160: 120 | B160: 498264.6414 | D160: 454226.5642
A161: 121 | B161: 412221.7413 | D161: 3049900.193
A162: 122 | B162: 287598.6866 | D162: 247764.305
A163: 123 | B163: 144987.1784 | D163: 1061605.463
A164: 124 | B164: 298541.2012 | D164: 400570.0573
A165: 125 | B165: 208982.846 | D165: 906803.0161
A166: 126 | B166: 447230.3664 | D166: 3617406.559
A167: 127 | B167: 348987.5188 | D167: 331729.9895
A168: 128 | B168: 279304.4355 | D168: 297574.1787
A169: 129 | B169: 648432.6154 | D169: 291133.1187
A170: 130 | B170: 194640.5453 | D170: 307742.818
A171: 131 | B171: 217049.5832 | D171: 764124.8555
A172: 132 | B172: 214994.7683 | D172: 2098872.924
A173: 133 | B173: 271234.7145 | D173: 336484.5598
A174: 134 | B174: 451324.1671 | D174: 1534903.595
A175: 135 | B175: 353253.8599 | D175: 256832.7887
A176: 136 | B176: 311331.9894 | D176: 1728969.716
A177: 137 | B177: 425118.9109 | D177: 433680.7501
A178: 138 | B178: 176319.3318 | D178: 1084948.111
A179: 139 | B179: 63698.09215 | D179: -9486596.606
A180: 140 | B180: 251841.0997 | D180: 2164406.504
A181: 141 | B181: 192923.9494 | D181: 1743872.997
A182: 142 | B182: 350396.1014 | D182: 260641.6931
A183: 143 | B183: 498525.0038 | D183: 326373.868
A184: 144 | B184: 194988.3723 | D184: 1788235.277
A185: 145 | B185: 300344.1496 | D185: -3297456.208
A186: 146 | B186: 252190.6525 | D186: -9313270.117
A187: 147 | B187: 373521.392 | D187: 364843.6102
A188: 148 | B188: 425070.9105 | D188: -1620449.015
A189: 149 | B189: 109168.3639 | D189: -4465955.282
A190: 150 | B190: 596616.1451 | D190: 342465.0402
A191: 151 | B191: 424037.0583 | D191: 1588774.444
A192: 152 | B192: 557802.3268 | D192: -4324048.238
A193: 153 | B193: 103935.5259 | D193: 1021457.51
A194: 154 | B194: 296420.3598 | D194: -808286.3138
A195: 155 | B195: 270404.9237 | D195: 247650.0148
A196: 156 | B196: 88369.76625 | D196: 325422.2392
A197: 157 | B197: 477567.2068 | D197: 3520330.512
A198: 158 | B198: 605795.9155 | D198: 1137417.609
A199: 159 | B199: 609356.5678 | D199: -4922838.292
A200: 160 | B200: 292393.1284 | D200: -293705.7299
A201: 161 | B201: 146739.6797 | D201: 978509.4604
A202: 162 | B202: 346418.2596 | D202: 351190.9808
A203: 163 | B203: 327692.6463 | D203: 1925057.067
A204: 164 | B204: 496969.9441 | D204: 361295.5817
A205: 165 | B205: 216197.9304 | D205: 461742.7132
A206: 166 | B206: 163708.7599 | D206: 2151879.029
A207: 167 | B207: -48623.29595 | D207: 381410.2484
A208: 168 | B208: 170014.8903 | D208: 245025.5841
A209: 169 | B209: 149540.8162 | D209: -902763.5347
A210: 170 | B210: 92755.73181 | D210: 391279.1581
A211: 171 | B211: 107051.4504 | D211: 394146.4078
... 829 more rows

Sheet EUR
A1: od: | B1: =OFFSET(A10,C1,0) -> 2007-01-22 | C1: 2036 | D1: =C2-C1 -> 253
A2: do: | B2: =OFFSET(A10,C2,0) -> 2008-01-23 | C2: 2289
A4: kurs | B4: =OFFSET(B10,C2,0) -> 3.628
A6: wartość średnia | B6: =AVERAGE(OFFSET(B10,$C$1,0,$D$1,1)) -> 3.769003953 | C6: =AVERAGE(OFFSET(C10,$C$1,0,$D$1,1)) -> -0.0002014973902
A7: odch standardowe dzienne | B7: =STDEV(OFFSET(B10,$C$1,0,$D$1,1)) -> 0.09656893985 | C7: =STDEV(OFFSET(C10,$C$1,0,$D$1,1)) -> 0.003505410752
A8: odch st. roczne | B8: =B7*252^(1/2) -> 1.532984395 | C8: =C7*252^(1/2) -> 0.05564667056
A10: 1999-01-01 | B10: 4.0925
A11: 1999-01-04 | B11: 4.067 | C11: =LN(B11/B10) -> -0.006250403338
A12: 1999-01-05 | B12: 4.024 | C12: =LN(B12/B11) -> -0.01062919413
A13: 1999-01-06 | B13: 4.01 | C13: -0.003485191479
A14: 1999-01-07 | B14: 4.0195 | C14: 0.002366275467
A15: 1999-01-08 | B15: 4.038 | C15: 0.004592003105
A16: 1999-01-11 | B16: 4.037 | C16: -0.0002476780198
A17: 1999-01-12 | B17: 4.034 | C17: -0.0007434023388
A18: 1999-01-13 | B18: 4.21 | C18: 0.04270420816
A19: 1999-01-14 | B19: 4.13 | C19: -0.01918524072
A20: 1999-01-15 | B20: 4.15 | C20: 0.00483092727
A21: 1999-01-18 | B21: 4.07 | C21: -0.01946533479
A22: 1999-01-19 | B22: 4.103 | C22: 0.008075414006
A23: 1999-01-20 | B23: 4.084 | C23: -0.004641513158
A24: 1999-01-21 | B24: 4.131 | C24: 0.01144260811
A25: 1999-01-22 | B25: 4.158 | C25: 0.006514681021
A26: 1999-01-25 | B26: 4.16 | C26: 0.0004808848374
A27: 1999-01-26 | B27: 4.179 | C27: 0.004556909193
A28: 1999-01-27 | B28: 4.1605 | C28: -0.004436724107
A29: 1999-01-28 | B29: 4.1395 | C29: -0.005060251762
A30: 1999-01-29 | B30: 4.165 | C30: 0.006141268022
A31: 1999-02-01 | B31: 4.235 | C31: 0.01666705249
A32: 1999-02-02 | B32: 4.235 | C32: 0
A33: 1999-02-03 | B33: 4.202 | C33: -0.007822725681
A34: 1999-02-04 | B34: 4.152 | C34: -0.01197045656
A35: 1999-02-05 | B35: 4.173 | C35: 0.005045055746
A36: 1999-02-08 | B36: 4.193 | C36: 0.004781266579
A37: 1999-02-09 | B37: 4.253 | C37: 0.01420814808
A38: 1999-02-10 | B38: 4.243 | C38: -0.002354050051
A39: 1999-02-11 | B39: 4.2515 | C39: 0.002001295624
A40: 1999-02-12 | B40: 4.231 | C40: -0.004833490106
A41: 1999-02-15 | B41: 4.262 | C41: 0.007300161938
A42: 1999-02-16 | B42: 4.2755 | C42: 0.003162520937
A43: 1999-02-17 | B43: 4.278 | C43: 0.0005845560463
A44: 1999-02-18 | B44: 4.28 | C44: 0.0004673989335
A45: 1999-02-19 | B45: 4.261 | C45: -0.004449135076
A46: 1999-02-22 | B46: 4.261 | C46: 0
A47: 1999-02-23 | B47: 4.241 | C47: -0.004704784025
A48: 1999-02-24 | B48: 4.287 | C48: 0.01078809712
A49: 1999-02-25 | B49: 4.3035 | C49: 0.003841457492
A50: 1999-02-26 | B50: 4.345 | C50: 0.00959711361
A51: 1999-03-01 | B51: 4.307 | C51: -0.008784152645
A52: 1999-03-02 | B52: 4.319 | C52: 0.002782287907
A53: 1999-03-03 | B53: 4.341 | C53: 0.005080842339
A54: 1999-03-04 | B54: 4.309 | C54: -0.007398877684
A55: 1999-03-05 | B55: 4.2565 | C55: -0.01225863229
A56: 1999-03-08 | B56: 4.253 | C56: -0.0008226100705
A57: 1999-03-09 | B57: 4.269 | C57: 0.003754991504
A58: 1999-03-10 | B58: 4.311 | C58: 0.009790287989
A59: 1999-03-11 | B59: 4.296 | C59: -0.003485538558
A60: 1999-03-12 | B60: 4.291 | C60: -0.001164551197
A61: 1999-03-15 | B61: 4.316 | C61: 0.005809241387
A62: 1999-03-16 | B62: 4.305 | C62: -0.002551909516
A63: 1999-03-17 | B63: 4.307 | C63: 0.0004644681923
A64: 1999-03-18 | B64: 4.312 | C64: 0.001160227535
A65: 1999-03-19 | B65: 4.255 | C65: -0.01330707158
A66: 1999-03-22 | B66: 4.28 | C66: 0.005858247568
A67: 1999-03-23 | B67: 4.287 | C67: 0.001634178022
A68: 1999-03-24 | B68: 4.345 | C68: 0.0134385711
A69: 1999-03-25 | B69: 4.313 | C69: -0.007392041052
A70: 1999-03-26 | B70: 4.2785 | C70: -0.00803123679
A71: 1999-03-29 | B71: 4.273 | C71: -0.001286324214
A72: 1999-03-30 | B72: 4.262 | C72: -0.002577622985
A73: 1999-03-31 | B73: 4.3 | C73: 0.008876489023
A74: 1999-04-01 | B74: 4.315 | C74: 0.003482301836
A75: 1999-04-02 | B75: 4.3455 | C75: 0.00704350236
A76: 1999-04-06 | B76: 4.313 | C76: =LN(B76/B75) -> -0.00750710923
A77: 1999-04-07 | B77: 4.304 | C77: -0.002088894806
A78: 1999-04-08 | B78: 4.29 | C78: -0.00325808992
A79: 1999-04-09 | B79: 4.296 | C79: 0.001397624267
A80: 1999-04-12 | B80: 4.307 | C80: 0.002557248865
A81: 1999-04-13 | B81: 4.299 | C81: -0.001859168558
A82: 1999-04-14 | B82: 4.29 | C82: -0.002095704574
A83: 1999-04-15 | B83: 4.286 | C83: -0.0009328358885
A84: 1999-04-16 | B84: 4.284 | C84: -0.0004667444659
A85: 1999-04-19 | B85: 4.263 | C85: -0.004914014802
A86: 1999-04-20 | B86: 4.267 | C86: 0.0009378664228
A87: 1999-04-21 | B87: 4.252 | C87: -0.003521543726
A88: 1999-04-22 | B88: 4.265 | C88: 0.003052720464
A89: 1999-04-23 | B89: 4.268 | C89: 0.0007031524959
A90: 1999-04-26 | B90: 4.238 | C90: -0.007053873593
A91: 1999-04-27 | B91: 4.245 | C91: 0.001650359917
A92: 1999-04-28 | B92: 4.253 | C92: 0.001882796508
A93: 1999-04-29 | B93: 4.2265 | C93: -0.006250388885
A94: 1999-04-30 | B94: 4.189 | C94: -0.008912185422
A95: 1999-05-04 | B95: 4.171 | C95: -0.00430622675
A96: 1999-05-05 | B96: 4.176 | C96: 0.001198035366
A97: 1999-05-06 | B97: 4.1995 | C97: 0.005611620003
A98: 1999-05-07 | B98: 4.208 | C98: 0.002022004852
A99: 1999-05-10 | B99: 4.188 | C99: -0.004764182427
A100: 1999-05-11 | B100: 4.183 | C100: -0.001194600548
A101: 1999-05-12 | B101: 4.176 | C101: -0.00167484188
A102: 1999-05-13 | B102: 4.203 | C102: 0.006444705443
A103: 1999-05-14 | B103: 4.199 | C103: -0.0009521543209
A104: 1999-05-17 | B104: 4.194 | C104: -0.001191469222
A105: 1999-05-18 | B105: 4.1885 | C105: -0.001312257868
A106: 1999-05-19 | B106: 4.171 | C106: -0.004186859397
A107: 1999-05-20 | B107: 4.18 | C107: 0.002155431322
A108: 1999-05-21 | B108: 4.1645 | C108: -0.003715026143
A109: 1999-05-24 | B109: 4.164 | C109: -0.0001200696405
A110: 1999-05-25 | B110: 4.1895 | C110: 0.006105244318
A111: 1999-05-26 | B111: 4.1755 | C111: -0.00334728346
A112: 1999-05-27 | B112: 4.168 | C112: -0.00179780716
A113: 1999-05-28 | B113: 4.171 | C113: 0.0007195107637
A114: 1999-05-31 | B114: 4.15 | C114: -0.005047480972
A115: 1999-06-01 | B115: 4.152 | C115: 0.000481811621
A116: 1999-06-02 | B116: 4.146 | C116: -0.00144613185
A117: 1999-06-04 | B117: 4.1365 | C117: -0.002293994365
A118: 1999-06-07 | B118: 4.1235 | C118: -0.003147702357
A119: 1999-06-08 | B119: 4.1302 | C119: 0.001623514659
A120: 1999-06-09 | B120: 4.138 | C120: 0.001886747373
A121: 1999-06-10 | B121: 4.1281 | C121: -0.002395326631
A122: 1999-06-11 | B122: 4.1252 | C122: -0.0007027492323
A123: 1999-06-14 | B123: 4.1182 | C123: -0.001698328768
A124: 1999-06-15 | B124: 4.0942 | C124: -0.005844836668
A125: 1999-06-16 | B125: 4.0777 | C125: -0.004038234051
A126: 1999-06-17 | B126: 4.057 | C126: -0.005089319749
A127: 1999-06-18 | B127: 4.0408 | C127: -0.004001092053
A128: 1999-06-21 | B128: 4.0625 | C128: 0.005355855484
A129: 1999-06-22 | B129: 4.0458 | C129: -0.004119241669
A130: 1999-06-23 | B130: 4.035 | C130: -0.002673004265
A131: 1999-06-24 | B131: 4.0476 | C131: 0.003117811152
A132: 1999-06-25 | B132: 4.0979 | C132: 0.0123505345
A133: 1999-06-28 | B133: 4.0796 | C133: -0.004475702977
A134: 1999-06-29 | B134: 4.0665 | C134: -0.00321626577
A135: 1999-06-30 | B135: 4.0593 | C135: -0.001772133669
A136: 1999-07-01 | B136: 4.0472 | C136: -0.00298526096
A137: 1999-07-02 | B137: 4.0099 | C137: -0.009258980644
A138: 1999-07-05 | B138: 4.0123 | C138: 0.0005983396254
A139: 1999-07-06 | B139: 4.0041 | C139: -0.002045806811
A140: 1999-07-07 | B140: 4.0048 | C140: =LN(B140/B139) -> 0.0001748055293
A141: 1999-07-08 | B141: 3.9718 | C141: -0.008274249247
A142: 1999-07-09 | B142: 3.9819 | C142: 0.00253969987
A143: 1999-07-12 | B143: 3.976 | C143: -0.001482803524
A144: 1999-07-13 | B144: 3.9802 | C144: 0.001055780496
A145: 1999-07-14 | B145: 3.9906 | C145: 0.002609526246
A146: 1999-07-15 | B146: 3.994 | C146: 0.0008516394573
A147: 1999-07-16 | B147: 3.9684 | C147: -0.0064302442
A148: 1999-07-19 | B148: 3.9595 | C148: -0.002245236125
A149: 1999-07-20 | B149: 3.9875 | C149: 0.007046713443
A150: 1999-07-21 | B150: 4.024 | C150: 0.009111964686
A151: 1999-07-22 | B151: 4.0288 | C151: 0.00119213207
A152: 1999-07-23 | B152: 4.035 | C152: 0.001537736854
A153: 1999-07-26 | B153: 4.0418 | C153: 0.00168383558
A154: 1999-07-27 | B154: 4.0667 | C154: 0.006141722457
A155: 1999-07-28 | B155: 4.0732 | C155: 0.001597071557
A156: 1999-07-29 | B156: 4.0994 | C156: 0.006411690223
A157: 1999-07-30 | B157: 4.134 | C157: 0.008404839722
A158: 1999-08-02 | B158: 4.1321 | C158: -0.0004597089398
A159: 1999-08-03 | B159: 4.206 | C159: 0.01772632496
A160: 1999-08-04 | B160: 4.2267 | C160: 0.004909469465
A161: 1999-08-05 | B161: 4.2533 | C161: 0.006273605482
A162: 1999-08-06 | B162: 4.2478 | C162: -0.001293950375
A163: 1999-08-09 | B163: 4.2389 | C163: -0.002097400229
A164: 1999-08-10 | B164: 4.2351 | C164: -0.0008968610467
A165: 1999-08-11 | B165: 4.223 | C165: -0.002861164624
A166: 1999-08-12 | B166: 4.1772 | C166: -0.01090461033
A167: 1999-08-13 | B167: 4.1772 | C167: 0
A168: 1999-08-16 | B168: 4.1739 | C168: -0.0007903150895
A169: 1999-08-17 | B169: 4.1656 | C169: -0.001990527667
A170: 1999-08-18 | B170: 4.1703 | C170: 0.001127652802
A171: 1999-08-19 | B171: 4.1802 | C171: 0.002371116613
A172: 1999-08-20 | B172: 4.229 | C172: 0.01160646621
A173: 1999-08-23 | B173: 4.2212 | C173: -0.001846110676
A174: 1999-08-24 | B174: 4.1563 | C174: -0.01549419239
A175: 1999-08-25 | B175: 4.1639 | C175: 0.00182687967
A176: 1999-08-26 | B176: 4.1513 | C176: -0.003030596893
A177: 1999-08-27 | B177: 4.1647 | C177: 0.003222706012
A178: 1999-08-30 | B178: 4.1748 | C178: 0.002422208751
A179: 1999-08-31 | B179: 4.1936 | C179: 0.004493100623
A180: 1999-09-01 | B180: 4.2177 | C180: 0.005730402185
A181: 1999-09-02 | B181: 4.2878 | C181: 0.01648382512
A182: 1999-09-03 | B182: 4.3204 | C182: 0.007574209672
A183: 1999-09-06 | B183: 4.3139 | C183: -0.001505623207
A184: 1999-09-07 | B184: 4.3068 | C184: -0.001647198396
A185: 1999-09-08 | B185: 4.3649 | C185: 0.01340011056
A186: 1999-09-09 | B186: 4.3197 | C186: -0.01040932412
A187: 1999-09-10 | B187: 4.2189 | C187: -0.02361152484
A188: 1999-09-13 | B188: 4.2103 | C188: -0.002040526499
A189: 1999-09-14 | B189: 4.2607 | C189: 0.01189956197
A190: 1999-09-15 | B190: 4.3048 | C190: 0.01029721316
A191: 1999-09-16 | B191: 4.326 | C191: 0.004912648338
A192: 1999-09-17 | B192: 4.2793 | C192: -0.01085388272
A193: 1999-09-20 | B193: 4.2705 | C193: -0.002058528412
A194: 1999-09-21 | B194: 4.278 | C194: 0.001754694256
A195: 1999-09-22 | B195: 4.3056 | C195: 0.00643089033
A196: 1999-09-23 | B196: 4.2658 | C196: -0.009286764366
A197: 1999-09-24 | B197: 4.2857 | C197: 0.004654162643
A198: 1999-09-27 | B198: 4.2727 | C198: -0.003037953355
A199: 1999-09-28 | B199: 4.2933 | C199: 0.00480972209
A200: 1999-09-29 | B200: 4.3353 | C200: 0.009735143987
A201: 1999-09-30 | B201: 4.3977 | C201: 0.01429086499
A202: 1999-10-01 | B202: 4.374 | C202: -0.005403754727
A203: 1999-10-04 | B203: 4.399 | C203: 0.005699320112
... 2372 more rows
